[Event "*** Titled Tuesday Blitz"]
[Site "Chess.com"]
[Date "2019.12.03"]
[Round "8"]
[White "Fiona"]
[Black "Atanejhad"]
[Result "0-1"]
[WhiteElo "1964"]
[BlackElo "2302"]
[TimeControl "180+2"]
[EndTime "14:49:39 PST"]
[Termination "Atanejhad won by resignation"]

1. e4 {[%clk 0:03:00.5]} 1... e5 {[%clk 0:03:00.1]} 2. Bc4 {[%clk 0:03:00.6]}
2... Nf6 {[%clk 0:02:59.1]} 3. d3 {[%clk 0:03:01.9]} 3... c6 {[%clk 0:02:59.4]}
4. Nf3 {[%clk 0:03:02]} 4... d5 {[%clk 0:03:00.9]} 5. Bb3 {[%clk 0:03:03.2]}
5... Bd6 {[%clk 0:03:00.6]} 6. O-O {[%clk 0:03:02.3]} 6... Bg4 {[%clk
0:02:58.6]} 7. h3 {[%clk 0:02:59.9]} 7... Bh5 {[%clk 0:02:59.4]} 8. Bg5 {[%clk
0:02:59.7]} 8... h6 {[%clk 0:02:59.7]} 9. Bxf6 {[%clk 0:03:00.7]} 9... Qxf6
{[%clk 0:03:00.2]} 10. exd5 {[%clk 0:03:02.2]} 10... Bxf3 {[%clk 0:02:59.7]} 11.
Qxf3 {[%clk 0:03:02.4]} 11... Qxf3 {[%clk 0:03:00.6]} 12. gxf3 {[%clk
0:03:03.9]} 12... O-O {[%clk 0:03:00.8]} 13. Nd2 {[%clk 0:03:02.7]} 13... Rd8
{[%clk 0:03:00.1]} 14. dxc6 {[%clk 0:03:01.3]} 14... Nxc6 {[%clk 0:03:00.4]} 15.
Ne4 {[%clk 0:03:03.2]} 15... Kf8 {[%clk 0:02:58.6]} 16. c3 {[%clk 0:03:01.1]}
16... Bc7 {[%clk 0:02:58.2]} 17. Rad1 {[%clk 0:03:01]} 17... Ne7 {[%clk
0:02:57.1]} 18. Kg2 {[%clk 0:02:56.4]} 18... Ng6 {[%clk 0:02:57.8]} 19. Bc2
{[%clk 0:02:39.2]} 19... b6 {[%clk 0:02:52.9]} 20. Rfe1 {[%clk 0:02:35.1]} 20...
f5 {[%clk 0:02:53.1]} 21. Ng3 {[%clk 0:02:32.7]} 21... Nh4+ {[%clk 0:02:53.9]}
22. Kh1 {[%clk 0:02:24.5]} 22... Nxf3 {[%clk 0:02:54.7]} 23. Re3 {[%clk
0:02:24.8]} 23... Nh4 {[%clk 0:02:56.2]} 24. Nf1 {[%clk 0:02:10.5]} 24... Kf7
{[%clk 0:02:50.9]} 25. Rde1 {[%clk 0:02:04.7]} 25... Kf6 {[%clk 0:02:51.6]} 26.
Nh2 {[%clk 0:01:53.5]} 26... g5 {[%clk 0:02:50.4]} 27. d4 {[%clk 0:01:46.3]}
27... e4 {[%clk 0:02:50.6]} 28. f3 {[%clk 0:01:47.1]} 28... Bxh2 {[%clk
0:02:50]} 29. fxe4 {[%clk 0:01:33.5]} 29... f4 {[%clk 0:02:47.1]} 30. e5+ {[%clk
0:01:30.6]} 30... Ke7 {[%clk 0:02:47.2]} 31. R3e2 {[%clk 0:01:27.8]} 31... Bg3
{[%clk 0:02:48.5]} 32. Rd1 {[%clk 0:01:28.5]} 32... f3 {[%clk 0:02:49.3]} 33.
Re4 {[%clk 0:01:26.6]} 33... f2 {[%clk 0:02:49.4]} 34. d5 {[%clk 0:01:25.3]}
34... Rxd5 {[%clk 0:02:49.9]} 0-1

[Event "*** Titled Tuesday Blitz"]
[Site "Chess.com"]
[Date "2019.12.03"]
[Round "8"]
[White "FelixJoseYnojosa"]
[Black "WeAintSurePal"]
[Result "1-0"]
[WhiteElo "2613"]
[BlackElo "2391"]
[TimeControl "180+2"]
[EndTime "14:50:10 PST"]
[Termination "FelixJoseYnojosa won by resignation"]

1. e4 {[%clk 0:03:01.9]} 1... e5 {[%clk 0:02:56.9]} 2. Nf3 {[%clk 0:03:02.5]}
2... Nc6 {[%clk 0:02:56.9]} 3. Bc4 {[%clk 0:03:03.9]} 3... Bc5 {[%clk
0:02:57.3]} 4. O-O {[%clk 0:03:04]} 4... d6 {[%clk 0:02:58.7]} 5. d3 {[%clk
0:03:04.4]} 5... Nf6 {[%clk 0:02:56.2]} 6. Nc3 {[%clk 0:03:05.9]} 6... h6 {[%clk
0:02:56]} 7. Be3 {[%clk 0:03:05.1]} 7... O-O {[%clk 0:02:53.1]} 8. Nd5 {[%clk
0:03:04.8]} 8... a6 {[%clk 0:02:46.6]} 9. c3 {[%clk 0:03:04.3]} 9... Ba7 {[%clk
0:02:45.9]} 10. a4 {[%clk 0:03:04.5]} 10... Be6 {[%clk 0:02:44.5]} 11. b4 {[%clk
0:03:05.1]} 11... Nd7 {[%clk 0:02:17.2]} 12. a5 {[%clk 0:03:04.4]} 12... Ne7
{[%clk 0:02:17]} 13. Qb3 {[%clk 0:03:04]} 13... c6 {[%clk 0:02:14.7]} 14. Nxe7+
{[%clk 0:03:02.8]} 14... Qxe7 {[%clk 0:02:15.2]} 15. d4 {[%clk 0:03:04.2]} 15...
Bg4 {[%clk 0:02:05]} 16. Nd2 {[%clk 0:02:58]} 16... Rae8 {[%clk 0:02:03.9]} 17.
h3 {[%clk 0:02:55.1]} 17... Bh5 {[%clk 0:02:03.1]} 18. f4 {[%clk 0:02:54.6]}
18... exd4 {[%clk 0:01:59.8]} 19. cxd4 {[%clk 0:02:56.5]} 19... d5 {[%clk
0:01:57.8]} 20. Bd3 {[%clk 0:02:53.4]} 20... dxe4 {[%clk 0:01:54.2]} 21. Nxe4
{[%clk 0:02:55.3]} 21... Bg6 {[%clk 0:01:53.1]} 22. f5 {[%clk 0:02:56.3]} 22...
Bh7 {[%clk 0:01:53.1]} 23. f6 {[%clk 0:02:46.7]} 23... gxf6 {[%clk 0:01:54]} 24.
Bxh6 {[%clk 0:02:31.2]} 24... Bxe4 {[%clk 0:01:53.2]} 25. Rae1 {[%clk
0:02:22.2]} 25... Bxd4+ {[%clk 0:01:53.2]} 26. Kh1 {[%clk 0:02:20.7]} 26... f5
{[%clk 0:01:51.4]} 27. Bxe4 {[%clk 0:01:43.9]} 27... fxe4 {[%clk 0:01:53.3]} 28.
Rf4 {[%clk 0:01:44.4]} 28... Kh7 {[%clk 0:01:39.3]} 29. Bxf8 {[%clk 0:01:42.3]}
29... Qxf8 {[%clk 0:01:37.8]} 30. Rxf7+ {[%clk 0:01:42.5]} 30... Bg7 {[%clk
0:01:36]} 31. Rxf8 {[%clk 0:01:42.6]} 31... Nxf8 {[%clk 0:01:37.9]} 32. Rxe4
{[%clk 0:01:40.6]} 32... Rxe4 {[%clk 0:01:37.7]} 33. Qc2 {[%clk 0:01:42.1]} 1-0

[Event "*** Titled Tuesday Blitz"]
[Site "Chess.com"]
[Date "2019.12.03"]
[Round "8"]
[White "nau64"]
[Black "PavelChernomordik"]
[Result "0-1"]
[WhiteElo "2262"]
[BlackElo "2455"]
[TimeControl "180+2"]
[EndTime "14:50:30 PST"]
[Termination "PavelChernomordik won by resignation"]

1. d4 {[%clk 0:03:00.9]} 1... g6 {[%clk 0:03:00.9]} 2. c4 {[%clk 0:03:01.8]}
2... Bg7 {[%clk 0:03:02.1]} 3. Nf3 {[%clk 0:03:03.4]} 3... d6 {[%clk 0:03:03.2]}
4. Nc3 {[%clk 0:03:04.7]} 4... Nc6 {[%clk 0:03:04.1]} 5. Bg5 {[%clk 0:02:59.9]}
5... h6 {[%clk 0:03:03.2]} 6. Be3 {[%clk 0:03:00.2]} 6... Nf6 {[%clk 0:02:56.6]}
7. d5 {[%clk 0:03:01.3]} 7... Na5 {[%clk 0:02:53.3]} 8. Bd4 {[%clk 0:02:58.5]}
8... c5 {[%clk 0:02:52.8]} 9. dxc6 {[%clk 0:02:45.8]} 9... Nxc6 {[%clk
0:02:51.5]} 10. Be3 {[%clk 0:02:40.5]} 10... Be6 {[%clk 0:02:47.7]} 11. b3
{[%clk 0:02:38.6]} 11... Ng4 {[%clk 0:02:46]} 12. Bd2 {[%clk 0:02:39.6]} 12...
O-O {[%clk 0:02:42.7]} 13. h3 {[%clk 0:02:39.4]} 13... Nge5 {[%clk 0:02:41.5]}
14. e3 {[%clk 0:02:34.6]} 14... Nxf3+ {[%clk 0:02:39.1]} 15. Qxf3 {[%clk
0:02:34.1]} 15... Nb4 {[%clk 0:02:37.8]} 16. Rc1 {[%clk 0:02:26.6]} 16... Nc6
{[%clk 0:02:24.7]} 17. g3 {[%clk 0:02:19.4]} 17... Ne5 {[%clk 0:02:20.3]} 18.
Qe2 {[%clk 0:02:20.1]} 18... d5 {[%clk 0:02:18.7]} 19. cxd5 {[%clk 0:02:20.5]}
19... Bxd5 {[%clk 0:02:18.8]} 20. Nxd5 {[%clk 0:02:20.4]} 20... Qxd5 {[%clk
0:02:18.5]} 21. e4 {[%clk 0:02:21.4]} 21... Qe6 {[%clk 0:02:07.8]} 22. Bg2
{[%clk 0:02:16.4]} 22... Rad8 {[%clk 0:02:02.3]} 23. O-O {[%clk 0:02:11.4]}
23... Nd3 {[%clk 0:01:58.6]} 24. Rc7 {[%clk 0:02:07.6]} 24... Qa6 {[%clk
0:01:49.4]} 25. Bc3 {[%clk 0:01:54.3]} 25... e5 {[%clk 0:01:37.5]} 26. Rd1
{[%clk 0:01:48.4]} 26... Nxf2 {[%clk 0:01:14.4]} 27. Rxd8 {[%clk 0:01:35]} 27...
Qxe2 {[%clk 0:01:13.9]} 0-1

[Event "*** Titled Tuesday Blitz"]
[Site "Chess.com"]
[Date "2019.12.03"]
[Round "8"]
[White "Chessmatus"]
[Black "WorldChampionBulletChess"]
[Result "1-0"]
[WhiteElo "2375"]
[BlackElo "2113"]
[TimeControl "180+2"]
[EndTime "14:50:39 PST"]
[Termination "Chessmatus won by resignation"]

1. e4 {[%clk 0:03:01.6]} 1... c5 {[%clk 0:02:50]} 2. Nf3 {[%clk 0:03:02.5]} 2...
e6 {[%clk 0:02:50.8]} 3. b3 {[%clk 0:03:02.7]} 3... d5 {[%clk 0:02:48.5]} 4.
exd5 {[%clk 0:03:03.4]} 4... exd5 {[%clk 0:02:50.4]} 5. d4 {[%clk 0:03:04.5]}
5... Nf6 {[%clk 0:02:31]} 6. Bb2 {[%clk 0:03:03.3]} 6... Nc6 {[%clk 0:02:29.9]}
7. Bb5 {[%clk 0:03:02.9]} 7... Be7 {[%clk 0:02:29]} 8. dxc5 {[%clk 0:03:03]}
8... Bxc5 {[%clk 0:02:27.1]} 9. O-O {[%clk 0:03:04]} 9... O-O {[%clk 0:02:27]}
10. Nd4 {[%clk 0:02:57]} 10... Bd7 {[%clk 0:02:23.9]} 11. Nxc6 {[%clk
0:02:53.8]} 11... bxc6 {[%clk 0:02:25.8]} 12. Bd3 {[%clk 0:02:54.8]} 12... Qc7
{[%clk 0:01:57.5]} 13. Bxf6 {[%clk 0:02:47.5]} 13... gxf6 {[%clk 0:01:59.4]} 14.
Qh5 {[%clk 0:02:48.4]} 14... f5 {[%clk 0:02:00.5]} 15. Qg5+ {[%clk 0:02:47.7]}
15... Kh8 {[%clk 0:02:00.1]} 16. Qf6+ {[%clk 0:02:47.3]} 16... Kg8 {[%clk
0:02:00.8]} 17. Bxf5 {[%clk 0:02:43.7]} 17... Bxf5 {[%clk 0:02:01.4]} 18. Qxf5
{[%clk 0:02:44]} 18... Bd4 {[%clk 0:02:02.8]} 19. Qg4+ {[%clk 0:02:45.1]} 19...
Bg7 {[%clk 0:02:03.9]} 20. Nd2 {[%clk 0:02:45]} 20... Qe5 {[%clk 0:02:03.8]} 21.
Rae1 {[%clk 0:02:44.2]} 21... Qf6 {[%clk 0:02:05]} 22. Nf3 {[%clk 0:02:44.8]}
22... Rae8 {[%clk 0:02:01.1]} 23. Ng5 {[%clk 0:02:44.9]} 23... h6 {[%clk
0:01:59.4]} 24. Nh3 {[%clk 0:02:42]} 24... Re5 {[%clk 0:01:49.2]} 25. Rxe5
{[%clk 0:02:35.7]} 25... Qxe5 {[%clk 0:01:51.1]} 26. Nf4 {[%clk 0:02:34.5]}
26... Kh7 {[%clk 0:01:36.5]} 27. Nh5 {[%clk 0:02:31.5]} 27... Rg8 {[%clk
0:01:36.6]} 28. Qf3 {[%clk 0:02:28]} 28... Qg5 {[%clk 0:01:21.4]} 29. Qxf7
{[%clk 0:02:22.6]} 29... Rf8 {[%clk 0:01:21.3]} 30. Qxg7+ {[%clk 0:02:22.1]}
30... Qxg7 {[%clk 0:01:21.3]} 31. Nxg7 {[%clk 0:02:24]} 31... Kxg7 {[%clk
0:01:22.9]} 32. Re1 {[%clk 0:02:25.5]} 32... Kf6 {[%clk 0:01:23.8]} 33. g3
{[%clk 0:02:24.9]} 33... c5 {[%clk 0:01:22.1]} 34. f4 {[%clk 0:02:25.9]} 34...
Rf7 {[%clk 0:01:21.6]} 35. Kg2 {[%clk 0:02:27]} 35... c4 {[%clk 0:01:17.1]} 36.
Kf3 {[%clk 0:02:24]} 36... c3 {[%clk 0:01:08.8]} 37. Re3 {[%clk 0:02:20.7]}
37... Rc7 {[%clk 0:01:06]} 38. Rd3 {[%clk 0:02:21]} 38... h5 {[%clk 0:01:05.9]}
39. Rxd5 {[%clk 0:02:20.5]} 1-0

[Event "*** Titled Tuesday Blitz"]
[Site "Chess.com"]
[Date "2019.12.03"]
[Round "8"]
[White "gusanchutik"]
[Black "Elshan1985"]
[Result "1-0"]
[WhiteElo "2967"]
[BlackElo "2744"]
[TimeControl "180+2"]
[EndTime "14:50:47 PST"]
[Termination "gusanchutik won by resignation"]

1. d4 {[%clk 0:03:00.9]} 1... g6 {[%clk 0:02:54.8]} 2. e4 {[%clk 0:03:01.8]}
2... Bg7 {[%clk 0:02:54.2]} 3. c4 {[%clk 0:03:03.1]} 3... d6 {[%clk 0:02:54.6]}
4. Nc3 {[%clk 0:03:04.3]} 4... e5 {[%clk 0:02:55.3]} 5. Nf3 {[%clk 0:03:04.7]}
5... Bg4 {[%clk 0:02:55.6]} 6. d5 {[%clk 0:03:06]} 6... a5 {[%clk 0:02:55.5]} 7.
Be2 {[%clk 0:03:06.4]} 7... Na6 {[%clk 0:02:55.5]} 8. Be3 {[%clk 0:03:07.8]}
8... Bxf3 {[%clk 0:02:56.1]} 9. Bxf3 {[%clk 0:03:08.5]} 9... Bh6 {[%clk
0:02:57.8]} 10. Qd2 {[%clk 0:03:04.6]} 10... Bxe3 {[%clk 0:02:49]} 11. Qxe3
{[%clk 0:03:06.5]} 11... Nc5 {[%clk 0:02:50.3]} 12. h4 {[%clk 0:03:07.8]} 12...
h5 {[%clk 0:02:48.7]} 13. b3 {[%clk 0:03:05.7]} 13... Nf6 {[%clk 0:02:48.3]} 14.
Rb1 {[%clk 0:03:02]} 14... Nfd7 {[%clk 0:02:48.9]} 15. Bd1 {[%clk 0:02:57.6]}
15... Nb6 {[%clk 0:02:44.6]} 16. g3 {[%clk 0:02:55]} 16... Qf6 {[%clk
0:02:45.5]} 17. O-O {[%clk 0:02:54.7]} 17... Rg8 {[%clk 0:02:38.3]} 18. Kg2
{[%clk 0:02:44.2]} 18... g5 {[%clk 0:02:36.8]} 19. hxg5 {[%clk 0:02:45.4]} 19...
Rxg5 {[%clk 0:02:38.3]} 20. Rh1 {[%clk 0:02:45.6]} 20... Qg6 {[%clk 0:02:35.1]}
21. Bf3 {[%clk 0:02:27.4]} 21... Nbd7 {[%clk 0:02:35.6]} 22. Rh4 {[%clk
0:02:24.2]} 22... Nf6 {[%clk 0:02:36.1]} 23. Rbh1 {[%clk 0:02:25.2]} 23... Kd7
{[%clk 0:02:32]} 24. Bd1 {[%clk 0:02:19.2]} 24... Rg8 {[%clk 0:02:23]} 25. a3
{[%clk 0:02:19]} 25... Ng4 {[%clk 0:02:15.2]} 26. Bxg4+ {[%clk 0:02:18.1]} 26...
Rxg4 {[%clk 0:02:16.1]} 27. b4 {[%clk 0:02:04.4]} 27... Rxh4 {[%clk 0:02:13.2]}
28. Rxh4 {[%clk 0:02:04.2]} 28... Nb3 {[%clk 0:02:05.9]} 29. Nb5 {[%clk
0:01:45.4]} 29... a4 {[%clk 0:02:05.9]} 30. Qa7 {[%clk 0:01:32.9]} 30... Nd2
{[%clk 0:01:48.5]} 31. Qxb7 {[%clk 0:01:28.4]} 31... Rc8 {[%clk 0:01:49.3]} 32.
Na7 {[%clk 0:01:23.3]} 32... Rd8 {[%clk 0:01:40.5]} 33. Qc6+ {[%clk 0:01:20.8]}
33... Ke7 {[%clk 0:01:37.7]} 34. Qxc7+ {[%clk 0:01:22.1]} 34... Ke8 {[%clk
0:01:38.4]} 35. Nc6 {[%clk 0:01:22.5]} 1-0

[Event "*** Titled Tuesday Blitz"]
[Site "Chess.com"]
[Date "2019.12.03"]
[Round "8"]
[White "bluejay1897"]
[Black "Caisachess"]
[Result "1-0"]
[WhiteElo "2374"]
[BlackElo "2245"]
[TimeControl "180+2"]
[EndTime "14:51:05 PST"]
[Termination "bluejay1897 won by resignation"]

1. Nf3 {[%clk 0:03:01.9]} 1... Nf6 {[%clk 0:03:00.5]} 2. g3 {[%clk 0:03:02.8]}
2... e6 {[%clk 0:02:59.8]} 3. Bg2 {[%clk 0:03:03.7]} 3... d5 {[%clk 0:03:01.3]}
4. O-O {[%clk 0:03:03.7]} 4... c5 {[%clk 0:02:59.5]} 5. d4 {[%clk 0:03:04.4]}
5... cxd4 {[%clk 0:02:59.5]} 6. Nxd4 {[%clk 0:03:01.6]} 6... Nc6 {[%clk
0:03:00.9]} 7. c4 {[%clk 0:03:00.9]} 7... Bc5 {[%clk 0:02:55.7]} 8. Nb3 {[%clk
0:02:56.9]} 8... Bb6 {[%clk 0:02:53]} 9. cxd5 {[%clk 0:02:57.9]} 9... exd5
{[%clk 0:02:54]} 10. Bg5 {[%clk 0:02:55.4]} 10... Be6 {[%clk 0:02:53.7]} 11. Nc3
{[%clk 0:02:55.7]} 11... d4 {[%clk 0:02:28.4]} 12. Ne4 {[%clk 0:02:46.5]} 12...
h6 {[%clk 0:02:14]} 13. Bxf6 {[%clk 0:02:46.5]} 13... gxf6 {[%clk 0:02:14.8]}
14. Rc1 {[%clk 0:02:45.3]} 14... f5 {[%clk 0:02:05.6]} 15. Nec5 {[%clk
0:02:43.3]} 15... Qe7 {[%clk 0:01:54.5]} 16. Nxe6 {[%clk 0:02:42]} 16... fxe6
{[%clk 0:01:51.5]} 17. Bxc6+ {[%clk 0:02:35.1]} 17... bxc6 {[%clk 0:01:52]} 18.
Rxc6 {[%clk 0:02:35.7]} 18... Rd8 {[%clk 0:01:47.8]} 19. Qd3 {[%clk 0:02:27.7]}
19... h5 {[%clk 0:01:44.7]} 20. a4 {[%clk 0:02:04.6]} 20... h4 {[%clk
0:01:44.4]} 21. a5 {[%clk 0:02:04.3]} 21... hxg3 {[%clk 0:01:44.7]} 22. fxg3
{[%clk 0:01:48.3]} 22... Qd7 {[%clk 0:01:10.2]} 23. Qc4 {[%clk 0:01:34.3]} 23...
Bxa5 {[%clk 0:00:41.7]} 24. Nxa5 {[%clk 0:01:22.6]} 1-0

[Event "*** Titled Tuesday Blitz"]
[Site "Chess.com"]
[Date "2019.12.03"]
[Round "8"]
[White "Korchmar_Vasiliy"]
[Black "Eltaj_Safarli"]
[Result "0-1"]
[WhiteElo "2756"]
[BlackElo "2982"]
[TimeControl "180+2"]
[EndTime "14:51:11 PST"]
[Termination "Eltaj_Safarli won on time"]

1. d4 {[%clk 0:03:00.8]} 1... Nf6 {[%clk 0:03:00.3]} 2. c4 {[%clk 0:03:01.7]}
2... g6 {[%clk 0:03:02.2]} 3. Nc3 {[%clk 0:03:02.4]} 3... d5 {[%clk 0:03:02.9]}
4. Nf3 {[%clk 0:03:03.3]} 4... Bg7 {[%clk 0:03:03.6]} 5. Bf4 {[%clk 0:03:04.5]}
5... O-O {[%clk 0:03:03.9]} 6. e3 {[%clk 0:03:05.8]} 6... c5 {[%clk 0:03:04.3]}
7. dxc5 {[%clk 0:03:07.7]} 7... Ne4 {[%clk 0:03:02.2]} 8. Rc1 {[%clk 0:03:07.7]}
8... Qa5 {[%clk 0:03:01.5]} 9. Be5 {[%clk 0:02:57.8]} 9... Bxe5 {[%clk
0:02:59.2]} 10. Nxe5 {[%clk 0:02:59.7]} 10... Nc6 {[%clk 0:03:00.6]} 11. Nxc6
{[%clk 0:02:54]} 11... bxc6 {[%clk 0:03:02.5]} 12. cxd5 {[%clk 0:02:51.1]} 12...
Nxc3 {[%clk 0:02:54.6]} 13. Qd2 {[%clk 0:01:40.7]} 13... Rb8 {[%clk 0:02:52]}
14. bxc3 {[%clk 0:01:24.1]} 14... Qxc5 {[%clk 0:02:50.9]} 15. dxc6 {[%clk
0:01:22.8]} 15... Be6 {[%clk 0:02:48.3]} 16. Be2 {[%clk 0:01:14.3]} 16... Rfd8
{[%clk 0:02:49.1]} 17. Qc2 {[%clk 0:01:14]} 17... Qxc6 {[%clk 0:02:47.6]} 18.
O-O {[%clk 0:01:10.9]} 18... Bd5 {[%clk 0:02:49]} 19. Rfd1 {[%clk 0:00:45.6]}
19... Bxg2 {[%clk 0:02:48.8]} 20. Rxd8+ {[%clk 0:00:42.1]} 20... Rxd8 {[%clk
0:02:50.7]} 21. Rd1 {[%clk 0:00:43.6]} 21... Rc8 {[%clk 0:02:48.3]} 22. Bf1
{[%clk 0:00:37.6]} 22... Bf3 {[%clk 0:02:45.6]} 23. Rd4 {[%clk 0:00:36.8]} 23...
Qc5 {[%clk 0:02:41.1]} 24. h4 {[%clk 0:00:35]} 24... Bb7 {[%clk 0:02:41.6]} 25.
Qd2 {[%clk 0:00:24.5]} 25... Qc6 {[%clk 0:02:39.6]} 26. e4 {[%clk 0:00:24.8]}
26... Qxc3 {[%clk 0:02:38.2]} 27. Qxc3 {[%clk 0:00:11.6]} 27... Rxc3 {[%clk
0:02:40.1]} 28. Rd7 {[%clk 0:00:13.5]} 28... Bxe4 {[%clk 0:02:40.1]} 29. Rxe7
{[%clk 0:00:14.2]} 29... Bd5 {[%clk 0:02:36.6]} 30. Rxa7 {[%clk 0:00:14.2]}
30... Rc1 {[%clk 0:02:31.9]} 31. Ra4 {[%clk 0:00:09.9]} 31... Bf3 {[%clk
0:02:33.1]} 32. Rc4 {[%clk 0:00:03.8]} 32... Ra1 {[%clk 0:02:34.4]} 33. Rc2
{[%clk 0:00:04.2]} 33... Kg7 {[%clk 0:02:35.8]} 34. Rb2 {[%clk 0:00:03.2]} 34...
Kh6 {[%clk 0:02:35.4]} 35. Rc2 {[%clk 0:00:03.8]} 35... Kh5 {[%clk 0:02:36.4]}
36. Rc3 {[%clk 0:00:03.6]} 36... Be2 {[%clk 0:02:34.5]} 0-1

[Event "*** Titled Tuesday Blitz"]
[Site "Chess.com"]
[Date "2019.12.03"]
[Round "8"]
[White "coalescenet"]
[Black "Bagirova"]
[Result "0-1"]
[WhiteElo "2305"]
[BlackElo "2121"]
[TimeControl "180+2"]
[EndTime "14:51:22 PST"]
[Termination "Bagirova won by resignation"]

1. d4 {[%clk 0:03:01.6]} 1... Nf6 {[%clk 0:02:58.2]} 2. c4 {[%clk 0:03:02.4]}
2... e6 {[%clk 0:02:59.2]} 3. Nf3 {[%clk 0:03:02.5]} 3... c5 {[%clk 0:03:00.2]}
4. d5 {[%clk 0:03:03.2]} 4... exd5 {[%clk 0:03:01.3]} 5. cxd5 {[%clk 0:03:04.4]}
5... d6 {[%clk 0:03:02.7]} 6. Nc3 {[%clk 0:03:05.2]} 6... g6 {[%clk 0:03:03.9]}
7. Bf4 {[%clk 0:03:06]} 7... a6 {[%clk 0:03:03.7]} 8. a4 {[%clk 0:03:06.7]} 8...
Bg7 {[%clk 0:03:05]} 9. e3 {[%clk 0:03:07.6]} 9... O-O {[%clk 0:03:06]} 10. h3
{[%clk 0:03:08.1]} 10... Nbd7 {[%clk 0:03:01.9]} 11. Bxd6 {[%clk 0:03:08.1]}
11... Re8 {[%clk 0:03:03.8]} 12. Be2 {[%clk 0:03:04.1]} 12... Ne4 {[%clk
0:03:01.5]} 13. Nxe4 {[%clk 0:03:04]} 13... Rxe4 {[%clk 0:03:02.7]} 14. Qc2
{[%clk 0:03:04.4]} 14... Rb4 {[%clk 0:03:01.2]} 15. O-O-O {[%clk 0:02:59.3]}
15... Rxb2 {[%clk 0:02:56.7]} 16. Qe4 {[%clk 0:02:41.8]} 16... Qf6 {[%clk
0:02:51.2]} 17. Qe8+ {[%clk 0:02:25.6]} 17... Bf8 {[%clk 0:02:37.7]} 18. Be5
{[%clk 0:02:22.3]} 18... Nxe5 {[%clk 0:02:32.7]} 19. Kxb2 {[%clk 0:01:50.2]}
19... Nxf3+ {[%clk 0:01:49.8]} 20. Ka2 {[%clk 0:01:50.2]} 20... Ne5 {[%clk
0:01:28.8]} 21. f4 {[%clk 0:01:49]} 21... Nc6 {[%clk 0:01:24]} 22. Bc4 {[%clk
0:01:36.7]} 22... Nb4+ {[%clk 0:01:22.3]} 23. Kb3 {[%clk 0:01:33.7]} 23... Bf5
{[%clk 0:01:18.9]} 24. Qe5 {[%clk 0:01:20.4]} 24... Bc2+ {[%clk 0:01:17.5]} 25.
Ka3 {[%clk 0:01:11.3]} 25... Qb6 {[%clk 0:01:13.2]} 26. Rd2 {[%clk 0:01:02.2]}
26... Nd3 {[%clk 0:01:12.2]} 27. Rxd3 {[%clk 0:00:57.6]} 27... Qb4+ {[%clk
0:01:11.4]} 28. Ka2 {[%clk 0:00:56.7]} 28... Qxc4+ {[%clk 0:01:12.4]} 0-1

[Event "*** Titled Tuesday Blitz"]
[Site "Chess.com"]
[Date "2019.12.03"]
[Round "8"]
[White "VincentKeymer"]
[Black "AryanTari"]
[Result "0-1"]
[WhiteElo "2645"]
[BlackElo "2844"]
[TimeControl "180+2"]
[EndTime "14:51:29 PST"]
[Termination "AryanTari won on time"]

1. Nf3 {[%clk 0:02:43.6]} 1... Nf6 {[%clk 0:03:00.3]} 2. g3 {[%clk 0:02:45.5]}
2... c5 {[%clk 0:02:59.4]} 3. Bg2 {[%clk 0:02:47.4]} 3... Nc6 {[%clk 0:03:00.5]}
4. O-O {[%clk 0:02:49.3]} 4... e5 {[%clk 0:02:58.1]} 5. c4 {[%clk 0:02:50]} 5...
d5 {[%clk 0:02:56.2]} 6. cxd5 {[%clk 0:02:50.9]} 6... Nxd5 {[%clk 0:02:57.4]} 7.
Nc3 {[%clk 0:02:52.6]} 7... Be6 {[%clk 0:02:58.4]} 8. d3 {[%clk 0:02:49.3]} 8...
Be7 {[%clk 0:02:58.9]} 9. Bd2 {[%clk 0:02:41]} 9... Nc7 {[%clk 0:02:51.4]} 10.
Rc1 {[%clk 0:02:41.7]} 10... O-O {[%clk 0:02:42.1]} 11. Ne4 {[%clk 0:02:41]}
11... b6 {[%clk 0:02:42.2]} 12. b4 {[%clk 0:02:40.7]} 12... f5 {[%clk
0:02:32.6]} 13. Neg5 {[%clk 0:02:32.7]} 13... Bxa2 {[%clk 0:02:27.8]} 14. bxc5
{[%clk 0:02:30]} 14... b5 {[%clk 0:02:27.4]} 15. Qc2 {[%clk 0:02:02.9]} 15...
Bd5 {[%clk 0:02:21.5]} 16. e4 {[%clk 0:02:01.2]} 16... fxe4 {[%clk 0:02:22.8]}
17. Nxe4 {[%clk 0:02:02.6]} 17... Ne6 {[%clk 0:02:22.5]} 18. Be3 {[%clk
0:01:58.9]} 18... Rxf3 {[%clk 0:02:00.4]} 19. Bxf3 {[%clk 0:01:58.4]} 19... Ncd4
{[%clk 0:02:01.8]} 20. Qd1 {[%clk 0:00:40.2]} 20... Bb3 {[%clk 0:02:02.6]} 21.
Qxb3 {[%clk 0:00:40.8]} 21... Nxb3 {[%clk 0:02:03.8]} 22. c6 {[%clk 0:00:42]}
22... Nxc1 {[%clk 0:01:56.7]} 23. Rxc1 {[%clk 0:00:43.9]} 23... Rc8 {[%clk
0:01:49.4]} 24. Bg4 {[%clk 0:00:29.4]} 24... Qd5 {[%clk 0:01:46.5]} 25. c7
{[%clk 0:00:30.6]} 25... Kh8 {[%clk 0:01:29.9]} 26. h4 {[%clk 0:00:17.7]} 26...
Rxc7 {[%clk 0:01:28.8]} 0-1